bitfinex-derivatives/quotes_ETHF0:USTF0_20250928
["timestamp","ask_amount","ask_price","bid_price","bid_amount"]
[1759082817418,3.93340489,4045.3,4045.2,1.21461]
[1759082818218,3.93570699,4045.3,4045.2,1.21714193]
[1759082818621,4.47560699,4045.3,4045.2,1.21714193]
[1759082819317,3.9632021,4045.3,4045.2,1.21714193]
[1759082820213,4.4754215,4045.3,4045.2,1.21714193]
[1759082821317,3.9632021,4045.3,4045.2,1.21714193]
[1759082824217,3.6333021,4045.3,4045.2,1.21714193]
[1759082824615,3.9632021,4045.3,4045.2,1.21714193]
[1759082829925,0.7554021,4045.3,4045.2,1.21714193]
[1759082831326,1.26781837,4045.3,4045.2,1.21714193]
[1759082831819,1.26781837,4045.3,4045.2,0.99814193]
[1759082833522,2.34747614,4045.3,4045.2,0.00253193]
[1759082833721,7.34747614,4045.3,4045.2,0.00253193]
[1759082838821,7.34747614,4045.3,4044.1,3.2078]
[1759082838822,0.4359,4044.2,4044.1,3.2078]
[1759082839119,0.8974,4044.0,4043.9,0.44495]
[1759082839324,1.66087619,4044.0,4043.9,0.44495]
[1759082839524,1.53797619,4044.0,4043.9,0.97965]
[1759082839924,1.53797619,4044.0,4043.9,0.98184127]
[1759082840226,1.53797619,4044.0,4043.9,0.32519127]
[1759082841027,1.66087619,4044.0,4043.9,0.00219127]
[1759082841220,1.66087619,4044.0,4043.3,1.32965777]
[1759082841221,0.44503,4043.2,4043.1,2.49889]
[1759082841426,0.44514,4042.2,4042.1,1.7830172]
[1759082841618,0.44518,4041.8,4041.7,0.323]
[1759082841818,0.44526,4041.2,4040.6,3.4588]
[1759082842018,1.8449043,4041.1,4040.5,0.1242]
[1759082842219,1.07965777,4040.6,4040.5,0.55247833]
[1759082842422,1.07965777,4040.6,4040.5,0.87547833]
[1759082842626,0.252,4040.7,4040.6,0.5347]
[1759082842827,0.252,4040.7,4040.6,0.7495]
[1759082843528,3.4598,4040.9,4040.8,0.75]
[1759082847024,3.2078,4040.9,4040.8,0.75]
[1759082847220,0.00240529,4041.1,4041.0,0.8781]
[1759082847424,0.25440529,4041.1,4041.0,0.8781]
[1759082851226,1.77932306,4041.1,4041.0,0.8781]
[1759082851432,1.33406306,4041.1,4041.0,0.8781]
[1759082854329,0.25440529,4041.1,4041.0,0.8781]
[1759082863839,0.69966529,4041.1,4041.0,1.32337]
[1759082864736,0.69966529,4041.1,4041.0,0.8781]
[1759082865138,0.44766529,4041.1,4041.0,0.8781]
[1759082865338,0.97486088,4041.1,4041.0,1.32337]
[1759082865640,0.52960088,4041.1,4041.0,1.32337]
[1759082866743,0.97486088,4041.1,4041.0,1.32337]
[1759082867743,0.52960088,4041.1,4041.0,1.32337]
[1759082869535,1.77859206,4041.8,4041.7,0.4452]
[1759082869738,0.52999584,4041.8,4041.7,1.1889]
[1759082870846,0.53220785,4041.8,4041.7,1.1889]
[1759082871245,2.31079991,4041.8,4041.7,1.1889]
[1759082873246,0.53220785,4041.8,4041.7,1.1889]
[1759082886755,0.75400785,4041.8,4041.7,0.7437]
[1759082887052,3.00227303,4041.8,4041.7,0.3331]
[1759082887246,2.55709303,4041.8,4041.5,0.1344]
[1759082887551,0.4267,4041.2,4041.1,0.66446]
[1759082887753,1.14399584,4041.2,4041.1,0.99756]
[1759082888548,1.14399584,4041.2,4041.1,0.3331]
[1759082888749,0.614,4041.1,4041.0,0.3331]
[1759082888952,1.84026584,4041.1,4041.0,0.3331]
[1759082890954,1.39499584,4041.1,4041.0,0.3331]
[1759082891958,0.44527,4041.0,4040.7,0.3122]
[1759082892158,1.41459584,4040.9,4040.8,0.5202]
[1759082892462,0.89151,4040.7,4040.6,0.3122]
[1759082892766,0.1874,4040.6,4040.5,0.31397833]
[1759082892966,1.16359584,4040.6,4040.5,0.31397833]
[1759082894365,1.16359584,4040.6,4040.5,0.00177833]
[1759082894762,1.16359584,4040.6,4040.5,0.31397833]
[1759082895063,1.16359584,4040.6,4040.5,0.44337833]
[1759082897067,1.16359584,4040.6,4040.5,0.65137833]
[1759082899268,1.41459584,4040.6,4040.5,0.65137833]
[1759082902389,1.41459584,4040.6,4040.5,0.44337833]
[1759082902582,1.41459584,4040.6,4040.5,0.00177833]
[1759082904978,2.51078102,4040.6,4040.5,0.31797833]
[1759082905182,2.76178102,4040.6,4040.5,0.66857833]
[1759082905688,2.76178102,4040.6,4040.5,0.44307833]
[1759082905885,2.76178102,4040.6,4040.5,0.31797833]
[1759082906184,2.76178102,4040.6,4040.5,0.00177833]
[1759082907482,7.76178102,4040.6,4040.5,0.00177833]
[1759082907888,2.76178102,4040.6,4040.5,0.31797833]
[1759082910387,2.76178102,4040.6,4040.5,0.66857833]
[1759082910588,2.57438102,4040.6,4040.5,0.88307833]
[1759082910989,2.76198102,4040.6,4040.5,0.88307833]
[1759082912088,2.76198102,4040.6,4040.5,0.44307833]
[1759082912285,2.76198102,4040.6,4040.5,0.31797833]
[1759082914189,3.20730102,4040.6,4040.5,0.76330833]
[1759082914392,2.32338102,4040.6,4040.5,1.32840833]
[1759082914600,1.22719584,4040.6,4040.5,1.32840833]
[1759082915192,1.00099584,4040.6,4040.5,1.32840833]
[1759082915587,0.78099584,4040.6,4040.5,1.32840833]
[1759082915790,0.52999584,4040.6,4040.5,1.32840833]
[1759082916100,0.78099584,4040.6,4040.5,1.32840833]
[1759082919303,1.00149584,4040.6,4040.5,1.32840833]
[1759082919500,0.78099584,4040.6,4040.5,1.32840833]
[1759082920201,1.00149584,4040.6,4040.5,1.32840833]
[1759082920805,0.78099584,4040.6,4040.5,1.32840833]
[1759082921100,0.52999584,4040.6,4040.5,1.32840833]
[1759082921301,0.52999584,4040.6,4040.5,6.32840833]
[1759082921802,0.52999584,4040.6,4040.5,1.32840833]
[1759082925604,0.52999584,4040.6,4040.5,6.32840833]
[1759082926607,3.2078,4040.9,4040.8,1.20149]
[1759082926801,3.2078,4040.9,4040.8,2.28264486]
[1759082927102,3.4588,4041.5,4041.4,0.44523]
[1759082927300,3.2078,4041.5,4041.4,1.20143]
[1759082928303,3.4283,4041.5,4041.4,0.7562]
[1759082928507,3.8365,4041.5,4041.4,0.3162]
[1759082930408,3.8365,4041.5,4041.4,0.5417]
[1759082932109,3.8365,4041.5,4041.4,0.3162]
[1759082934615,3.8365,4041.5,4041.3,0.44524]
[1759082934807,3.8365,4041.5,4041.4,0.44523]
[1759082935008,5.16765486,4041.5,4041.4,0.44523]
[1759082935210,5.16765486,4041.5,4041.4,0.77863]
[1759082936617,5.16765486,4041.5,4041.4,0.98893]
[1759082938313,5.61287486,4041.5,4041.4,0.5437]
[1759082938520,6.13838839,4041.5,4041.4,0.5437]
[1759082938819,5.69316839,4041.5,4041.4,0.98893]
[1759082940715,6.13838839,4041.5,4041.4,0.3334]
[1759082941829,6.13838839,4041.5,4041.4,0.77863]
[1759082942619,5.25206839,4041.5,4041.1,0.44526]
[1759082942926,1.07637,4041.0,4040.9,0.44528]
[1759082943225,0.6311,4040.6,4040.5,0.78050833]
[1759082943420,2.48776839,4040.6,4040.5,0.78050833]
[1759082943819,2.48776839,4040.6,4040.5,0.33517833]
[1759082946926,2.48776839,4040.6,4040.5,0.68137833]
[1759082947132,0.52551353,4040.6,4040.5,1.98213319]
[1759082947327,3.6799,4041.0,4040.9,0.7633]
[1759082947535,4.42809787,4041.0,4040.9,0.7633]
[1759082950529,1.22029787,4041.0,4040.9,0.7633]
[1759082952634,2.48865273,4041.0,4040.9,0.5437]
[1759082952938,5.69645273,4041.0,4040.9,0.5437]
[1759082953235,5.44645273,4041.0,4040.9,0.5437]
[1759082953442,5.69645273,4041.0,4040.9,0.5437]
[1759082953643,5.44645273,4041.0,4040.9,0.5437]
[1759082953935,5.69645273,4041.0,4040.9,0.5437]
[1759082955427,5.69645273,4041.0,4040.9,0.3334]
[1759082957038,5.50925273,4041.0,4040.9,0.7634]
[1759082958240,5.69645273,4041.0,4040.9,0.7634]
[1759082958731,5.69645273,4041.0,4040.9,0.3334]
[1759082961941,0.6335,4040.9,4040.8,0.44529]
[1759082962142,1.15942794,4040.9,4040.8,0.77589]
[1759082964235,1.60470794,4040.9,4040.8,0.44529]
[1759082964441,1.60470794,4040.9,4040.8,0.78479]
[1759082964645,1.07079,4040.8,4040.7,0.4453]
[1759082964838,1.84671794,4040.8,4040.7,0.4453]
[1759082965247,1.40142794,4040.8,4040.7,0.4453]
[1759082965448,1.40142794,4040.8,4040.7,0.7848]
[1759082965746,1.40142794,4040.8,4040.7,0.4453]
[1759082966144,1.40142794,4040.8,4040.7,0.7848]
[1759082969446,1.84671794,4040.8,4040.7,0.7848]
[1759082970140,1.40142794,4040.8,4040.7,0.7848]
[1759082970545,1.40142794,4040.8,4040.7,0.9904]
[1759082972046,1.84671794,4040.8,4040.7,0.9904]
[1759082972451,1.84671794,4040.8,4040.7,0.3395]
[1759082972848,1.84671794,4040.8,4040.5,0.00177833]
[1759082972849,0.6255,4040.6,4040.5,0.00177833]
[1759082973149,2.9279028,4040.6,4040.5,0.00177833]
[1759082976252,3.19461493,4040.6,4040.5,0.00177833]
[1759082976456,3.38785673,4040.6,4040.5,0.00177833]
[1759082978253,2.94461493,4040.6,4040.5,0.00177833]
[1759082978438,3.19461493,4040.6,4040.5,0.00177833]
[1759082978842,2.94461493,4040.6,4040.5,0.00177833]
[1759082979050,2.94461493,4040.6,4040.1,0.3395]
[1759082979051,1.07086,4040.2,4040.1,0.3395]
[1759082979246,6.40245493,4040.2,4040.1,0.3395]
[1759082980054,6.40245493,4040.2,4040.1,0.34154169]
[1759082981049,11.40245493,4040.2,4040.1,0.00204169]
[1759082981848,6.40245493,4040.2,4040.1,0.00204169]
[1759082982047,0.66523,4039.6,4039.5,0.4658]
[1759082982244,6.40252493,4039.6,4039.5,0.4658]
[1759082982548,6.40252493,4039.6,4039.5,0.3395]
[1759082982758,6.40252493,4039.6,4039.2,0.78497]
[1759082982759,1.07096,4039.3,4039.2,0.78497]
[1759082982948,3.19475493,4039.3,4039.2,0.78497]
[1759082983147,3.19475493,4039.3,4039.2,0.78705686]
[1759082983842,2.74929493,4039.3,4039.2,0.78705686]
[1759082984654,2.74929493,4039.3,4039.2,0.99265686]
[1759082986162,2.74929493,4039.3,4039.2,0.34158686]
[1759082986653,2.74929493,4039.3,4039.2,0.54718686]
[1759082987460,0.99572794,4039.3,4039.2,0.75168686]
[1759082988352,2.56229493,4039.3,4039.2,0.75168686]
[1759082988657,2.74929493,4039.3,4039.2,0.00208686]
[1759082989154,2.74929493,4039.3,4039.2,0.34158686]
[1759082989555,2.74929493,4039.3,4039.2,0.54718686]
[1759082990958,2.74929493,4039.3,4039.2,0.34158686]
[1759082995662,3.19475493,4039.3,4039.2,0.78705686]
[1759082996761,2.74929493,4039.3,4039.2,1.00025686]
[1759082996956,3.19475493,4039.3,4039.2,0.55478686]
[1759082997149,3.19475493,4039.3,4039.2,0.34158686]
[1759082997349,3.19475493,4039.3,4039.2,0.78705686]
[1759082998761,3.19475493,4039.3,4039.2,0.34158686]
[1759082998946,2.94475493,4039.3,4039.2,0.34158686]
[1759082999154,3.19475493,4039.3,4039.2,0.34158686]
[1759082999555,3.19475493,4039.3,4039.2,0.78705686]
[1759083000153,3.19475493,4039.3,4039.2,0.34158686]
[1759083000356,3.19475493,4039.3,4039.2,0.78705686]
[1759083001759,1.40142794,4039.3,4039.2,1.00025686]
[1759083002061,2.56229493,4039.3,4039.2,1.20715686]
[1759083002760,3.00775493,4039.3,4039.2,1.20715686]
[1759083003559,3.19505493,4039.3,4039.2,0.55478686]
[1759083003753,3.19505493,4039.3,4039.2,0.00208686]
[1759083003953,3.19505493,4039.3,4039.2,0.31698686]
[1759083005962,3.19505493,4039.3,4039.2,0.76245686]
[1759083006465,2.74959493,4039.3,4039.2,0.76245686]
[1759083006966,3.19505493,4039.3,4039.2,0.97565686]
[1759083009864,2.56229493,4039.3,4039.2,1.18255686]
[1759083010765,2.74959493,4039.3,4039.2,1.18255686]
[1759083015170,2.56229493,4039.3,4039.2,1.18255686]
[1759083016667,0.52592794,4039.3,4039.2,1.18255686]
[1759083016971,0.52592794,4039.3,4039.2,6.18255686]
[1759083017265,0.77592794,4039.3,4039.2,6.18255686]
[1759083017459,0.52592794,4039.3,4039.2,6.18255686]
[1759083032387,0.73582794,4039.3,4039.2,6.18255686]
[1759083032588,0.52592794,4039.3,4039.2,6.18255686]
[1759083038984,1.60774769,4039.3,4039.2,6.18255686]
[1759083039389,1.60774769,4039.3,4039.2,1.18255686]
[1759083040884,0.52592794,4039.3,4039.2,1.18255686]
[1759083041893,0.52592794,4039.3,4039.2,1.37588603]
[1759083042085,4.28961975,4040.1,4040.0,0.44538]
[1759083042290,5.27692899,4040.1,4040.0,1.32798]
[1759083042893,5.49702899,4040.1,4040.0,1.32798]
[1759083044488,5.06702899,4040.1,4040.0,1.32798]
[1759083044690,5.49702899,4040.1,4040.0,1.32798]
[1759083045491,0.6171,4039.9,4039.8,0.3238]
[1759083045690,2.22632899,4039.9,4039.8,0.3238]
[1759083046491,1.79632899,4039.9,4039.6,0.3238]
[1759083046796,0.6171,4039.7,4039.6,0.76922]
[1759083046989,1.14450924,4039.7,4039.6,0.76922]
[1759083047597,0.6171,4039.4,4039.3,0.44545]
[1759083047792,5.68412899,4039.4,4039.3,0.44545]
[1759083048193,5.68412899,4039.4,4039.3,0.76925]
[1759083048495,4.41520924,4039.4,4039.3,1.19965]
[1759083048694,5.49702899,4039.4,4039.3,1.19965]
[1759083049686,5.68412899,4039.4,4039.3,1.19965]
[1759083050898,5.49702899,4039.4,4039.3,1.19965]
[1759083051797,5.24702899,4039.4,4039.3,1.19965]
[1759083051999,5.49702899,4039.4,4039.3,1.19965]
[1759083054300,5.68412899,4039.4,4039.3,1.19965]
[1759083055097,5.15671975,4039.4,4039.3,1.19965]
[1759083055398,5.68306535,4039.4,4039.3,1.19965]
[1759083058202,5.68306535,4039.4,4039.3,0.97985]
[1759083058892,5.68306535,4039.4,4039.3,0.44545]
[1759083059299,5.68306535,4039.4,4039.3,0.76155]
[1759083060697,5.68306535,4039.4,4039.3,0.76156]
[1759083060898,5.68306535,4039.4,4039.3,0.3161]
[1759083061701,6.12851535,4039.4,4039.3,0.76156]
[1759083062196,6.12851535,4039.4,4039.2,0.00208686]
[1759083062393,1.5887056,4039.3,4039.2,0.00208686]
[1759083064700,1.8387056,4039.3,4039.2,0.00208686]
[1759083064901,1.8387056,4039.3,4039.2,0.31818686]
[1759083068913,1.5887056,4039.3,4039.2,0.31818686]
[1759083069112,1.8387056,4039.3,4039.2,0.00208686]
[1759083069708,1.8387056,4039.3,4039.2,0.76365686]
[1759083070209,2.08246535,4039.3,4039.2,1.19625686]
[1759083070814,2.28796535,4039.3,4039.2,1.19625686]
[1759083071015,2.03796535,4039.3,4039.2,1.19625686]
[1759083071312,2.28796535,4039.3,4039.2,1.19625686]
[1759083072508,2.47506535,4039.3,4039.2,0.76365686]
[1759083072708,0.7506456,4039.3,4039.2,1.19625686]
[1759083072907,0.5263456,4039.3,4039.2,1.19625686]
[1759083073518,0.7763456,4039.3,4039.2,1.19625686]
[1759083075011,0.5263456,4039.3,4039.2,1.19625686]
[1759083075318,0.77707971,4039.3,4039.2,1.19625686]
[1759083076414,0.52707971,4039.3,4039.2,6.19625686]
[1759083077716,0.01992971,4039.3,4039.2,6.19625686]
[1759083077916,9.71e-06,4039.3,4039.2,6.19625686]
[1759083078310,3.4578,4039.9,4039.8,1.2029]
[1759083079721,3.4293,4040.4,4040.3,0.4237]
[1759083079923,3.2078,4040.4,4040.3,1.20285]
[1759083081124,1.55331975,4040.6,4040.5,0.99322]
[1759083081323,1.55331975,4040.6,4040.5,1.32702]
[1759083082430,1.95751975,4040.6,4040.5,0.3338]
[1759083082630,0.4385,4040.2,4040.1,0.77917]
[1759083082830,1.70751975,4040.2,4040.1,0.99317]
[1759083083636,1.52031975,4040.2,4040.1,0.99317]
[1759083084835,1.70751975,4040.2,4040.1,0.99317]
[1759083085431,1.52031975,4040.2,4040.1,0.99317]
[1759083085829,1.52031975,4040.2,4040.1,1.19907]
[1759083086229,0.44537,4040.0,4039.6,0.3167]
[1759083086433,4.89771975,4039.7,4039.6,0.97572]
[1759083086632,5.14771975,4039.7,4039.6,0.3167]
[1759083087728,0.6081,4039.6,4039.5,0.3167]
[1759083087930,0.86632,4039.6,4039.4,0.3167]
[1759083088235,1.93991975,4039.5,4039.4,0.3167]
[1759083088739,0.6081,4039.4,4039.3,0.76214]
[1759083088937,0.4209,4039.4,4039.3,1.18164]
[1759083089129,0.4655,4039.4,4039.3,1.18164]
[1759083090540,0.73873722,4039.4,4039.3,1.18164]
[1759083090740,0.98873722,4039.4,4039.3,1.18164]
[1759083091640,1.19413722,4039.4,4039.3,1.18164]
[1759083092332,1.38133722,4039.4,4039.3,0.7362]
[1759083092735,1.38133722,4039.4,4039.3,0.3167]
[1759083093531,2.46315697,4039.4,4039.3,0.3167]
[1759083094242,2.21315697,4039.4,4039.3,0.3167]
[1759083094435,2.46315697,4039.4,4039.3,0.3167]
[1759083096637,0.52323722,4039.4,4039.3,6.81801975]
[1759083096830,3.2078,4039.7,4039.6,0.7362]
[1759083097140,3.73114924,4039.7,4039.6,0.7362]
[1759083097338,3.73114924,4039.7,4039.6,1.18162]
[1759083099842,4.40204924,4039.7,4039.6,0.7362]
[1759083100144,5.93708343,4039.7,4039.6,0.3167]
[1759083101639,5.93708343,4039.7,4039.5,0.1351]
[1759083101832,5.93708343,4039.7,4039.2,0.66114686]
[1759083101833,0.4209,4039.3,4039.2,0.66114686]
[1759083102043,1.19424924,4039.3,4039.2,0.66114686]
[1759083102343,1.38144924,4039.3,4039.2,0.97784686]
[1759083102546,1.38144924,4039.3,4039.2,0.53238686]
[1759083102742,1.38144924,4039.3,4039.2,0.00208686]
[1759083103746,1.38144924,4039.3,4039.2,0.31878686]
[1759083112753,1.82689924,4039.3,4039.2,0.31878686]
[1759083117446,1.38969924,4039.3,4039.2,0.73858686]
[1759083117748,1.63969924,4039.3,4039.2,0.73858686]
[1759083118357,1.82689924,4039.3,4039.2,0.73858686]
[1759083119956,1.63969924,4039.3,4039.2,1.18404686]
[1759083120361,0.52334924,4039.3,4039.2,1.18404686]
[1759083120666,3.4211,4039.7,4039.6,0.731]
[1759083120854,4.19331013,4039.7,4039.6,0.731]
[1759083121047,3.94331013,4039.7,4039.6,0.731]
[1759083121253,4.19331013,4039.7,4039.6,0.731]
[1759083123162,4.19329784,4039.7,4039.6,0.731]
[1759083125358,3.94329784,4039.7,4039.6,0.731]
[1759083125675,4.19329784,4039.7,4039.6,0.731]
[1759083127462,4.63870784,4039.7,4039.6,1.17642]
[1759083128563,4.19329784,4039.7,4039.6,1.17642]
[1759083129568,3.97999784,4039.7,4039.6,1.17642]
[1759083130762,3.72999784,4039.7,4039.6,1.17642]
[1759083131063,3.97999784,4039.7,4039.6,1.17642]
[1759083136869,3.72999784,4039.7,4039.6,1.17642]
[1759083137072,3.97999784,4039.7,4039.6,1.17642]
[1759083137562,4.19379784,4039.7,4039.6,1.17642]
[1759083145387,4.40099784,4039.7,4039.6,1.17642]
[1759083150788,4.84640784,4039.7,4039.6,0.731]
[1759083150989,0.6206,4039.4,4039.2,0.00208686]
[1759083151291,3.18608203,4039.3,4039.2,0.00208686]
[1759083152791,0.44552,4038.7,4038.6,0.3202]
[1759083152995,0.6185,4038.4,4038.3,3.97356]
[1759083153189,1.14069784,4038.4,4038.3,3.97356]
[1759083153389,1.14069784,4038.4,4038.3,4.17866]
[1759083153787,1.14300672,4038.4,4038.3,4.18053901]
[1759083155189,1.14300672,4038.4,4038.3,0.32207901]
[1759083155393,1.14300672,4038.4,4038.3,0.00187901]
[1759083155692,1.14300672,4038.4,4038.3,0.32207901]
[1759083158291,2.22549636,4038.4,4038.3,0.32207901]
[1759083164404,2.22549636,4038.4,4038.3,0.00187901]
[1759083164903,2.22549636,4038.4,4038.3,0.32207901]
[1759083166108,2.22549636,4038.4,4038.3,0.00187901]
[1759083167808,5.43329636,4038.4,4038.3,0.00187901]
[1759083169309,0.6185,4037.7,4037.6,0.3202]
[1759083169507,5.68098748,4037.7,4037.6,0.3202]
[1759083170208,5.68098748,4037.7,4037.6,0.32337409]
[1759083171903,5.68098748,4037.7,4037.6,0.00317409]
[1759083173716,10.68098748,4037.7,4037.6,0.00317409]
[1759083174520,9.59849784,4037.7,4037.6,0.00317409]
[1759083174909,4.59849784,4037.7,4037.6,0.00317409]
[1759083175313,4.59699719,4037.7,4037.6,0.00317409]
[1759083177910,4.34699719,4037.7,4037.6,0.00317409]
[1759083178107,4.59699719,4037.7,4037.6,0.00317409]
[1759083178306,3.95469719,4037.7,4037.6,0.77357409]
[1759083178513,3.4578,4037.7,4037.6,5.77357409]
[1759083178716,3.4578,4037.7,4037.6,6.85606373]
[1759083180625,3.2078,4037.7,4037.6,6.85606373]
[1759083182014,0.25,4037.9,4037.8,0.7704]
[1759083182221,0.25,4037.9,4037.7,0.44563]
[1759083182222,3.2078,4038.2,4038.1,0.4405]
[1759083182523,4.18927915,4038.2,4038.1,0.7704]
[1759083184821,3.72957915,4038.2,4038.1,1.85288964]
[1759083185017,3.72957915,4038.2,4038.1,6.85288964]
[1759083185323,3.2078,4038.2,4038.1,6.85288964]
[1759083186225,0.00230888,4038.4,4038.3,0.7704]
[1759083186418,0.52434849,4038.4,4038.3,0.7704]
[1759083187626,0.00230888,4038.4,4038.3,0.7704]
[1759083191526,3.2078,4038.7,4038.6,0.7394]
[1759083191929,3.2078,4038.7,4038.6,1.18494]
[1759083192327,3.4578,4039.2,4039.1,0.44548]
[1759083192522,4.20485351,4039.2,4039.1,1.18488]
[1759083193631,4.60435351,4039.2,4039.1,0.3086]
[1759083194830,3.98165351,4039.2,4038.8,0.3086]
[1759083195134,0.6227,4038.8,4038.7,0.75412]
[1759083195336,0.8727,4038.8,4038.7,0.75412]
[1759083197733,0.8727,4038.8,4038.7,0.97282]
[1759083197932,0.8727,4038.8,4038.7,0.75412]
[1759083198135,0.8727,4038.8,4038.7,0.97282]
[1759083198635,0.8727,4038.8,4038.7,0.3086]
[1759083198834,0.6227,4038.2,4038.1,0.75419]
[1759083199037,0.8727,4038.2,4038.1,0.75419]
[1759083199441,0.8727,4038.2,4038.1,0.97289]
[1759083199836,0.6888,4038.2,4038.1,0.97289]
[1759083200741,0.6888,4038.2,4038.1,1.18499]
[1759083202038,0.8727,4038.2,4038.1,1.18499]
[1759083202238,0.8727,4038.2,4038.1,0.75419]
[1759083204141,4.60118875,4038.2,4038.1,0.75419]
[1759083204451,4.60118875,4038.2,4038.1,0.3086]
[1759083204847,4.60118875,4038.2,4038.1,0.5273]
[1759083206246,4.60118875,4038.2,4038.1,0.3086]
[1759083207150,4.60118875,4038.2,4038.1,0.5332]
[1759083208348,4.16728875,4038.2,4038.1,0.7604]
[1759083208550,4.41728875,4038.2,4038.1,0.7604]
[1759083209349,4.41728875,4038.2,4038.1,1.20599]
[1759083210644,4.38608938,4040.7,4039.1,0.4518]
[1759083210645,0.21033043,4039.2,4039.1,0.4518]
[1759083210852,0.52460202,4039.2,4039.1,0.7707]
[1759083211043,0.52460202,4039.2,4039.1,1.85318964]
[1759083211346,0.73240202,4039.2,4039.1,0.7707]
[1759083216256,2.22619166,4039.2,4039.1,0.3189]
[1759083220350,1.14370202,4039.2,4039.1,0.3189]
[1759083222763,1.14370202,4039.2,4039.1,0.5435]
[1759083223358,1.14370202,4039.2,4039.1,0.98898]
[1759083223562,0.95820202,4039.2,4039.1,0.98898]
[1759083223953,0.95820202,4039.2,4039.1,1.21618]
[1759083224258,1.20820202,4039.2,4039.1,1.21618]
[1759083225361,1.39370202,4039.2,4039.1,0.98898]
[1759083225962,1.39370202,4039.2,4039.1,0.76438]
[1759083226456,0.4113,4038.8,4038.7,0.44552]
[1759083226649,0.4336,4038.8,4038.7,1.21622]
[1759083226854,1.20567159,4038.8,4038.7,1.21622]
[1759083227464,1.39117159,4038.8,4038.7,0.76442]
[1759083227761,1.39117159,4038.8,4038.7,0.98902]
[1759083233569,1.20567159,4038.8,4038.7,1.19942]
[1759083235468,1.39087159,4038.8,4038.7,1.19942]
[1759083235670,1.39087159,4038.8,4038.7,0.98902]
[1759083236970,1.20567159,4038.8,4038.7,0.98902]
[1759083237169,1.20567159,4038.8,4038.7,1.19942]
[1759083237760,0.72987159,4038.8,4038.7,1.19942]
[1759083237963,0.52207159,4038.8,4038.7,1.19942]
[1759083238164,2.27765,4038.9,4038.8,0.3096]
[1759083238369,2.27765,4038.9,4038.8,0.732]
[1759083240260,0.00253043,4039.2,4039.1,0.86788]
[1759083240466,0.00253043,4039.2,4039.1,2.52594058]
[1759083246476,4.3e-07,4039.2,4039.1,7.52594058]
[1759083246675,3.2078,4040.2,4040.1,0.86777]
[1759083246988,4.1919,4040.7,4040.6,0.65732]
[1759083247276,3.9419,4040.7,4040.6,1.17732]
[1759083247973,3.94421498,4040.7,4040.6,1.18017832]
[1759083249782,0.73641498,4040.7,4040.6,1.18017832]
[1759083250183,1.25315669,4040.7,4040.6,1.18017832]
[1759083250980,1.50315669,4040.7,4040.6,1.18017832]
[1759083251582,1.50315669,4040.7,4040.6,0.44817832]
[1759083251781,4.71095669,4040.7,4040.6,0.44817832]
[1759083251977,6.05941727,4040.7,4040.6,0.00285832]
[1759083253485,4.71095669,4040.7,4040.6,0.33525832]
[1759083253684,4.71095669,4040.7,4040.6,0.55245832]
[1759083254183,4.46095669,4040.7,4040.6,0.55245832]
[1759083254386,4.71095669,4040.7,4040.6,0.55245832]
[1759083254985,4.46095669,4040.7,4040.6,0.55245832]
[1759083255285,4.71095669,4040.7,4040.6,0.55245832]
[1759083255791,11.05941727,4040.7,4040.6,0.00285832]
[1759083260885,9.46095669,4040.7,4040.6,0.00285832]
[1759083261091,9.71095669,4040.7,4040.6,0.00285832]
[1759083269388,9.71095669,4040.7,4040.6,0.53625832]
[1759083269693,4.46095669,4040.7,4040.6,0.53625832]
[1759083269897,4.71095669,4040.7,4040.6,0.75825832]
[1759083271195,4.71095669,4040.7,4040.6,1.20357832]
[1759083271987,5.15626669,4040.7,4040.6,0.00285832]
[1759083273387,10.15626669,4040.7,4040.6,0.00285832]
[1759083276394,0.7768,4039.6,4039.5,0.97884]
[1759083276594,1.54354171,4039.6,4039.5,0.97884]
[1759083277501,1.54354171,4039.6,4039.5,0.98061013]
[1759083278007,2.89200229,4039.6,4039.5,0.00177013]
[1759083281002,0.51674171,4039.6,4039.5,0.88847013]
[1759083281202,3.2078,4039.8,4039.6,0.88423]
[1759083281400,0.76744958,4039.7,4039.6,1.20083]
[1759083281592,0.51744958,4039.7,4039.6,1.20083]
[1759083282297,0.51744958,4039.7,4039.6,2.28235628]
[1759083285507,0.51744958,4039.7,4039.6,1.20083]
[1759083288113,1.29424958,4039.7,4039.6,1.20083]
[1759083292115,1.29424958,4039.7,4039.6,0.76203]
[1759083292505,1.29424958,4039.7,4039.6,0.97883]
[1759083294917,1.73966958,4039.7,4039.6,0.5334]
[1759083296721,1.98966958,4039.7,4039.6,1.18373]
[1759083297014,1.98966958,4039.7,4039.6,0.7383]
[1759083298518,1.98966958,4039.7,4039.6,1.18373]
[1759083300213,1.54424958,4039.7,4039.6,1.18373]
[1759083300410,0.95614958,4039.7,4039.6,1.18373]
[1759083300612,0.51744958,4039.7,4039.6,1.18373]
[1759083300818,0.76744958,4039.7,4039.6,1.18373]
[1759083301023,0.51744958,4039.7,4039.6,1.18373]
[1759083301211,0.76744958,4039.7,4039.6,1.18373]
[1759083302912,1.53614958,4039.7,4039.6,0.7383]
[1759083303116,1.21413,4039.6,4039.5,0.00177013]
[1759083303311,2.81310586,4039.6,4039.5,0.00177013]
[1759083303513,4.59404733,4039.6,4039.5,0.00177013]
[1759083306123,0.4302,4038.9,4038.8,0.3408]
[1759083306326,4.74394958,4038.9,4038.8,0.3408]
[1759083306623,4.74394958,4038.9,4038.8,0.7633]
[1759083307024,4.74394958,4038.9,4038.8,0.76531368]
[1759083309126,4.2265,4038.9,4038.8,0.76531368]
[1759083309315,4.7446758,4038.9,4038.8,0.76531368]
[1759083311631,4.4946758,4038.9,4038.8,0.76531368]
[1759083311928,3.9759758,4038.9,4038.8,1.84683996]
[1759083315427,4.1886758,4038.9,4038.8,1.84683996]
[1759083316327,3.9759758,4038.9,4038.8,1.84683996]
[1759083316521,4.1886758,4038.9,4038.8,1.84683996]
[1759083318023,0.9808758,4038.9,4038.8,1.84683996]
[1759083319124,0.5181758,4038.9,4038.8,7.29234996]
[1759083321521,0.5181758,4038.9,4038.3,0.44556]
[1759083321522,4.7177758,4038.9,4038.3,0.44556]
[1759083321725,1.83032628,4038.4,4038.3,0.99426]
[1759083322029,2.59850208,4038.4,4038.3,0.99426]
[1759083322427,2.59850208,4038.4,4038.3,0.99625797]
[1759083326324,2.59850208,4038.4,4038.3,0.55069797]
[1759083327429,2.59850208,4038.4,4038.3,0.00199797]
[1759083328426,2.59850208,4038.4,4038.3,0.54869797]
[1759083328835,1.5169758,4038.4,4038.3,0.77169797]